[Event "French Top 16-A 2024"]
[Site "Chartres"]
[Date "2024.06.04"]
[Round "6.4"]
[White "Laurent-Paoli, Pierre"]
[Black "Ramirez Garcia, Jorge Alberto"]
[Result "1-0"]
[ECO "D35"]
[WhiteElo "2576"]
[BlackElo "2266"]
[Annotator "TA"]
[PlyCount "81"]
[EventDate "2024.06.01"]
[EventType "team-tourn"]
[EventCountry "FRA"]
[SourceTitle "playchess.com"]
[Source "ChessBase"]
[SourceQuality "1"]
[TimeControl "40/5400+30:1800+30"]

{[%evp 21,81,30,39,25,34,25,31,29,39,31,53,0,0,9,4,0,0,0,27,0,0,0,48,37,53,45,58,26,129,133,224,121,111,124,112,127,118,125,121,129,120,120,315,316,347,333,355,355,412,406,404,410,381,417,372,401,386,386,366,356,484,489]} 1. d4 {[%emt 0:00:02]} d5 {[%emt 0:03:21]} 2. c4 {[%emt 0:01:31]} e6 {[%emt 0:00:07]} 3. Nf3 {[%emt 0:00:11]} Nf6 {[%emt 0:00:10]} 4. Nc3 {[%emt 0:00:16]} Nbd7 {[%emt 0:00:07]} 5. cxd5 {[%emt 0:02:36]} exd5 {[%emt 0:00:11]} 6. Qc2 {[%emt 0:01:55]} Be7 {[%emt 0:01:14]} 7. Bf4 {[%emt 0:01:07]} c6 {[%emt 0:07:07]} 8. h3 {[%emt 0:01:14]} O-O {[%emt 0:05:22]} 9. e3 {[%emt 0:00:24]} Re8 {[%emt 0:00:26]} 10. Bd3 {[%emt 0:01:03]} Nf8 {[%emt 0:00:32]} 11. O-O {[%emt 0:00:42]} Ne6 {[%emt 0:03:50]} 12. Bh2 {[%emt 0:07:14]} g6 {[%emt 0:03:15]} 13. Rab1 {[%emt 0:01:26]} a5 {[%emt 0:07:04]} 14. a3 {[%emt 0:00:43] White is slightly better.} Ng7 {[%emt 0:00:28]} 15. b4 {[%emt 1:17:36]} Bf5 {[%emt 0:04:35]} 16. Ne5 {[%emt 0:00:00]} axb4 {[%emt 0:01:24]} 17. axb4 {[%emt 0:00:00]} Bd6 {[%emt 0:00:11]} 18. Bxf5 {[%emt 0:00:00]} Nxf5 {[%emt 0:00:22]} 19. Na4 {[%emt 0:00:00]} Nd7 {[%emt 0:10:14]} 20. Nc5 {[%emt 0:00:00]} (20. Nxd7 {simplifies} Bxh2+ 21. Kxh2 Qxd7 22. Kg1) 20... Bxe5 {[%emt 0:02:44]} 21. dxe5 {[%emt 0:00:00]} Nxe5 {[%emt 0:19:43]} (21... Nxc5 $11 22. bxc5 Qe7) 22. Nxb7 $14 {[%emt 0:00:00]} Qb6 {[%emt 0:01:34]} 23. Nc5 {[%emt 0:00:00] [#] aiming for Bxe5.} Nc4 {[%emt 0:01:07]} 24. e4 {[%emt 0:00:00]} Na3 {[%emt 0:06:11]} (24... Ng7 $11 {keeps the balance.}) 25. Qb2 $16 {[%emt 0:00:00]} dxe4 {[%emt 0:00:13] [#]} (25... Nxb1 $2 26. exf5 Rad8 (26... Na3 $2 27. Nd7 $18) 27. Qxb1 $18 (27. Rxb1 d4 $18)) (25... Nc4 $16 26. Qf6 dxe4) 26. Nd7 {[%emt 0:00:00]} (26. Ra1 $1 $18 {[%cal Ra1a3]}) 26... Qd4 {[%emt 0:00:16]} 27. Nf6+ {[%emt 0:00:00]} (27. Qxd4 {simplifies} Nxd4 28. Nf6+ Kf8 29. Bd6+) 27... Kf8 {[%emt 0:00:18]} 28. Qxd4 {[%emt 0:00:00]} (28. Nxh7+ $2 Kg7 29. Qxd4+ Nxd4 $19) 28... Nxd4 {[%emt 0:00:04]} 29. Bd6+ {[%emt 0:00:00]} (29. Nxh7+ $2 Kg7 30. Rbd1 Ne2+ 31. Kh1 Kxh7 $19) 29... Kg7 {[%emt 0:00:03]} 30. Nxe8+ {[%emt 0:00:00]} Rxe8 {[%emt 0:00:07]} 31. Rbd1 $36 {[%emt 0:00:00][%mdl 2048] White is in control.} Ndc2 {[%emt 0:15:00] Black cannot hold the game after this.} (31... Nab5 $16 {is a better defense.} 32. Rd2 (32. Bc5 Ne2+ 33. Kh2 Nf4 $16) 32... Nb3) 32. Bc5 $18 {[%emt 0:00:00]} Rb8 {[%emt 0:01:23]} 33. Rd7 {[%emt 0:00:00]} Nxb4 {[%emt 0:00:41]} 34. Ra1 {[%emt 0:00:00]} Nac2 {[%emt 0:01:28]} 35. Raa7 {[%emt 0:00:00]} Kf6 {[%emt 0:02:45]} 36. Rxf7+ {[%emt 0:00:00]} Ke6 {[%emt 0:00:05]} 37. Rfe7+ {[%emt 0:00:00]} ({Don't do} 37. Rxh7 Nd3 38. Be3 Nxe3) 37... Kd5 {[%emt 0:00:18]} 38. Bxb4 {[%emt 0:00:00]} Rxb4 {[%emt 0:00:24]} 39. Rad7+ {[%emt 0:00:00]} ({But not} 39. Rxh7 Nd4 40. Rhg7 Ne2+ 41. Kh2 Nf4) 39... Kc5 {[%emt 0:00:43]} 40. Re5+ {[%emt 0:00:00]} Kb6 {[%emt 0:00:17]} 41. Rxh7 {[%emt 0:24:18] Weighted Error Value: White=0.07 (flawless) /Black=0.29 (precise) .  Loses game:     	---       	Black=1      Mistake:       	White=1     	Black=3      Inaccurate:     	White=2     	Black=2      OK:         	White=23    	Black=8      Best:        	White=1     	Black=5} 1-0

[Event "French Top 16-A 2024"]
[Site "Chartres"]
[Date "2024.06.04"]
[Round "6.4"]
[White "Libiszewski, Fabien"]
[Black "Barseghyan, Harutyun"]
[Result "1/2-1/2"]
[ECO "D02"]
[WhiteElo "2498"]
[BlackElo "2431"]
[Annotator "TA"]
[PlyCount "42"]
[EventDate "2024.06.01"]
[EventType "team-tourn"]
[EventCountry "FRA"]
[SourceTitle "playchess.com"]
[Source "ChessBase"]
[SourceQuality "1"]
[TimeControl "40/5400+30:1800+30"]

{[%evp 9,42,-2,35,24,57,43,92,100,88,93,82,92,91,88,80,35,56,47,150,-5,0,0,0,0,0,0,0,0,31,0,0,0,0,0,0]} 1. Nf3 {[%emt 0:00:06]} Nf6 {[%emt 0:04:31]} 2. d4 {[%emt 0:00:23]} d5 {[%emt 0:00:59]} 3. Bf4 {[%emt 0:00:23]} c5 {[%emt 0:01:53]} 4. e3 {[%emt 0:00:48]} Nc6 {[%emt 0:01:08]} 5. Nbd2 {[%emt 0:00:49]} Bf5 {[%emt 0:02:22]} 6. dxc5 {[%emt 0:02:30]} Nd7 {[%emt 0:15:00][%cal Oe7e5]} 7. Nd4 {[%emt 0:15:10]} Bg6 {[%emt 0:02:38]} (7... g6 $14 {feels stronger.}) 8. Nxc6 $16 {[%emt 0:02:23] White is better.} bxc6 {[%emt 0:00:03]} 9. b4 {[%emt 0:00:21]} e5 {[%emt 0:02:19]} 10. Bg3 {[%emt 0:01:16]} a5 {[%emt 0:00:15]} 11. a3 {[%emt 0:17:11]} Be7 {[%emt 0:05:07]} 12. c4 {[%emt 0:00:24]} d4 {[%emt 0:04:21]} 13. exd4 {[%emt 0:20:09] d5 is the strong threat.} exd4 {[%emt 0:02:22] [#]} ({Better is} 13... O-O $1 $14) 14. Nb3 $2 {[%emt 0:00:25]} (14. Be2 $1 $16) 14... axb4 {[%emt 0:02:13]} 15. axb4 {[%emt 0:03:01]} (15. Nxd4 $2 {is the wrong capture.} Bxc5 16. Be2 (16. Nxc6 $2 {too greedy.} Qf6 $19) 16... Qf6 (16... Rxa3 $2 17. O-O $19) 17. axb4 Rxa1 (17... Bxd4 $2 18. Rxa8+ Ke7 19. Rxh8 $18) (17... Bxb4+ $2 18. Kf1 $19) 18. Qxa1 Bxb4+ (18... Qxd4 19. O-O $15) (18... Bxd4 $2 19. Qa8+ Qd8 20. Qa3 $19) 19. Kf1 O-O $19) 15... Rxa1 {[%emt 0:00:07]} 16. Qxa1 {[%emt 0:03:13]} O-O {[%emt 0:02:31]} 17. Qxd4 {[%emt 0:03:35]} ({Reject} 17. Nxd4 Bf6 18. Bd6 Re8+ 19. Be2 h5 $17) 17... Bf6 {[%emt 0:06:21]} 18. Qd2 {[%emt 0:00:20] Threatens to win with Be2.} Ne5 {[%emt 0:06:50]} 19. Be2 {[%emt 0:04:46] [#] And now Qxd8 would win.} Nd3+ {[%emt 0:01:29] The position is equal.} 20. Kf1 $1 {[%emt 0:00:04]} Bg5 {[%emt 0:13:38]} 21. Qc3 {[%emt 0:04:43] Hoping for h4.} Bf6 {[%emt 0:24:53] Weighted Error Value: White=0.24 (precise) /Black=0.16 (very precise) .  Mistake:       	White=1     	Black=2      Inaccurate:     	White=2     	Black=2      OK:         	White=7     	Black=7      Best:        	White=1     	Black=2      Strong:       	White=1     	---} 1/2-1/2

[Event "French Top 16-A 2024"]
[Site "Chartres"]
[Date "2024.06.04"]
[Round "6.5"]
[White "Bailet, Pierre"]
[Black "Fedorchuk, Sergey A."]
[Result "1/2-1/2"]
[ECO "E11"]
[WhiteElo "2492"]
[BlackElo "2546"]
[Annotator "TA"]
[PlyCount "38"]
[EventDate "2024.06.01"]
[EventType "team-tourn"]
[EventCountry "FRA"]
[SourceTitle "playchess.com"]
[Source "ChessBase"]
[SourceQuality "1"]
[TimeControl "40/5400+30:1800+30"]

{[%evp 19,38,4,6,0,18,22,18,16,50,29,36,45,21,9,23,14,21,8,7,7,22]} 1. d4 {[%emt 0:00:10]} Nf6 {[%emt 0:00:31]} 2. Nf3 {[%emt 0:00:28]} e6 {[%emt 0:00:49]} 3. c4 {[%emt 0:00:27]} Bb4+ {[%emt 0:01:35]} 4. Bd2 {[%emt 0:00:34]} Bxd2+ {[%emt 0:01:55]} 5. Qxd2 {[%emt 0:00:31]} d5 {[%emt 0:00:23]} 6. Nc3 {[%emt 0:01:59]} O-O {[%emt 0:00:46]} 7. e3 {[%emt 0:00:57]} Qe7 {[%emt 0:00:49]} 8. Rc1 {[%emt 0:01:22]} Rd8 {[%emt 0:00:53]} 9. Qc2 {[%emt 0:04:54]} dxc4 {[%emt 0:02:24]} 10. Bxc4 {[%emt 0:00:15]} c5 {[%emt 0:00:08]} 11. O-O {[%emt 0:02:01]} Nc6 {[%emt 0:02:37]} 12. dxc5 {[%emt 0:03:52]} Qxc5 {[%emt 0:00:08]} 13. Ne4 {[%emt 0:00:24]} Qe7 {[%emt 0:00:59]} 14. Nxf6+ {[%emt 0:06:21]} Qxf6 {[%emt 0:00:06]} 15. Bd3 {[%emt 0:00:35]} h6 {[%emt 0:02:48]} 16. Be4 {[%emt 0:02:36]} Bd7 {[%emt 0:00:37]} 17. Rfd1 {[%emt 0:06:55]} Be8 {[%emt 0:02:16] The position is equal.} 18. Qb3 {[%emt 0:11:12]} Rxd1+ {[%emt 0:01:11]} 19. Rxd1 {[%emt 0:00:10]} Rd8 {[%emt 0:00:41] Weighted Error Value: White=0.08 (flawless) /Black=0.09 (flawless) .  Inaccurate:     	---       	Black=1      OK:         	White=3     	Black=2} 1/2-1/2

[Event "French Top 16-A 2024"]
[Site "Chartres"]
[Date "2024.06.04"]
[Round "6.5"]
[White "De Balmann, Marc"]
[Black "Degraeve, Remy"]
[Result "0-1"]
[ECO "A07"]
[WhiteElo "2151"]
[BlackElo "2433"]
[Annotator "TA"]
[PlyCount "124"]
[EventDate "2024.06.01"]
[EventType "team-tourn"]
[EventCountry "FRA"]
[SourceTitle "playchess.com"]
[Source "ChessBase"]
[SourceQuality "1"]
[TimeControl "40/5400+30:1800+30"]

{[%evp 9,124,0,32,-3,5,-20,-25,-22,-11,-18,-34,-35,-29,-35,0,-14,-28,-22,-24,-70,-62,-103,-61,-102,-90,-91,-91,-91,-91,-75,-47,-60,-45,-41,-50,-44,-43,-47,0,-44,-32,-66,-43,-172,-162,-160,-158,-175,-185,-156,-84,-95,14,7,16,16,15,14,14,-2,0,0,0,-125,-143,-143,-138,-101,-141,-139,-139,-144,-135,-135,-135,-492,-408,-492,-483,-485,-466,-409,-315,-447,-8,-8,-8,-8,-15,-1539,-1355,-1355,-1010,-1440,-1238,-2450,-3966,-29944,-29946,-29944,-10972,-6083,-6079,-29960,-29963,-29967,-29970,-29963,-29966,-29980,-29981,-29981,-29982,-29983,-29984,-29990,-29991]} 1. Nf3 {[%emt 0:00:03]} d5 {[%emt 0:00:05]} 2. g3 {[%emt 0:00:06]} Nf6 {[%emt 0:00:29]} 3. Bg2 {[%emt 0:00:08]} e6 {[%emt 0:00:03]} 4. O-O {[%emt 0:00:14]} Be7 {[%emt 0:00:06]} 5. d3 {[%emt 1:32:29]} a5 {[%emt 0:00:15]} 6. Nbd2 {[%emt 0:00:00]} a4 {[%emt 0:00:05]} 7. a3 {[%emt 0:00:00]} c5 {[%emt 0:00:05]} 8. e4 {[%emt 0:00:00]} Nc6 {[%emt 0:00:05]} 9. Re1 {[%emt 0:00:00]} h6 {[%emt 0:00:22]} 10. e5 {[%emt 0:00:00]} Nd7 {[%emt 0:00:12]} 11. Nf1 {[%emt 0:00:00]} g5 {[%emt 0:00:08]} 12. h3 {[%emt 0:00:00]} Qc7 {[%emt 0:00:05]} 13. Qe2 {[%emt 0:00:00]} b6 {[%emt 0:00:06]} 14. c4 {[%emt 0:00:00]} (14. Bd2 $11) 14... d4 $15 {[%emt 0:01:55]} 15. g4 {[%emt 0:00:00]} Bb7 {[%emt 0:07:40]} 16. Bd2 {[%emt 0:00:00]} Nf8 {[%emt 0:06:49]} 17. Ng3 {[%emt 0:00:00]} Ng6 {[%emt 0:00:20]} 18. Nh5 {[%emt 0:00:00]} Na5 {[%emt 0:02:41]} 19. Bxa5 {[%emt 0:00:00]} Rxa5 {[%emt 0:01:13]} 20. Rab1 {[%emt 0:00:00]} Bc6 {[%emt 0:01:32]} 21. Nd2 {[%emt 0:00:00]} Bxg2 {[%emt 0:05:53]} 22. Kxg2 {[%emt 0:00:00]} Kd7 {[%emt 0:02:49]} 23. Kg1 {[%emt 0:00:00]} Raa8 {[%emt 0:06:12]} (23... Rf8 $15) 24. Nf3 {[%emt 0:00:00]} Qc6 {[%emt 0:01:59]} 25. Kh2 {[%emt 0:00:00]} Rab8 {[%emt 0:01:38]} 26. Kg3 {[%emt 0:00:00]} ({White should play} 26. Kg1 $15) 26... f5 $1 $19 {[%emt 0:07:05]} 27. Nf6+ {[%emt 0:00:00]} Bxf6 $1 {[%emt 0:21:02]} 28. exf6 {[%emt 0:00:00]} Qd6+ {[%emt 0:00:37]} 29. Ne5+ {[%emt 0:00:00]} Nxe5 {[%emt 0:02:24]} (29... Kc7 $142 $1 {[%cal Oh6h5] Strongly threatening ...h5!} 30. Kh2 fxg4 31. hxg4 Nxe5 32. Qxe5 Rhf8) 30. Qxe5 $17 {[%emt 0:00:00] [#]} f4+ {[%emt 0:00:08] Really sharp!} (30... fxg4 $1 $17 31. hxg4 (31. Kxg4 Qxe5 32. Rxe5 Rhf8 $17) 31... Qxe5+ 32. Rxe5 Rhf8) 31. Kf3 $11 {[%emt 0:00:00]} Qxe5 {[%emt 0:02:54]} 32. Rxe5 {[%emt 0:00:00][%mdl 4096] Endgame. KRR-KRR} Rhf8 {[%emt 0:00:08] [#]} 33. h4 $1 {[%emt 0:02:45]} gxh4 {[%emt 0:00:05]} 34. Rh1 {[%emt 0:01:34]} (34. b4 {seems wilder.} axb3 35. Rxb3 Kd6 36. Rh5) 34... Rxf6 {[%emt 0:00:05] ...Kd6 is the strong threat.} 35. Rxh4 {[%emt 0:00:37]} Kd6 {[%emt 0:01:49]} 36. Reh5 {[%emt 0:00:45]} (36. Rhh5 $11) 36... b5 $17 {[%emt 0:00:04]} 37. cxb5 {[%emt 0:00:15]} Rxb5 {[%emt 0:00:03]} 38. Rxh6 {[%emt 0:00:15]} Rxh6 {[%emt 0:00:15]} 39. Rxh6 {[%emt 0:00:01]} Rxb2 {[%emt 0:02:28] aiming for ...Rd2. KR-KR} 40. g5 {[%emt 0:04:41][%cal Oh6f6]} Rd2 {[%emt 0:03:14] Threatens to win with ...Ke5.} 41. g6 {[%emt 0:32:10] [#] Threatening mate with g7.} Ke7 $1 {[%emt 0:30:05] Black is more active.} (41... Rxd3+ $2 42. Ke2 $18) 42. Rh7+ $2 {[%emt 0:03:07][%mdl 8192]} (42. Rh5 $17) 42... Kf6 $19 {[%emt 0:00:17]} 43. g7 {[%emt 0:00:00]} Kf7 {[%emt 0:00:00]} (43... Rxd3+ $2 {too greedy.} 44. Ke4 (44. Kxf4 $2 {is the wrong capture.} Kf7 $19) 44... Kf7 45. Kxd3 $18) 44. Ke4 {[%emt 0:00:00]} Rxf2 {[%emt 0:00:00]} 45. Rh5 {[%emt 0:00:00]} Re2+ {[%emt 0:00:00]} 46. Kxf4 {[%emt 0:00:00]} (46. Kf3 $142 Re3+ 47. Kxf4) 46... Kxg7 $2 {[%emt 0:00:00]} (46... c4 $1 $19 {[%cal Rc4d3]} 47. dxc4 Kxg7) 47. Rxc5 $11 {[%emt 0:00:00]} Kf6 {[%emt 0:00:00]} 48. Ra5 {[%emt 0:00:00]} Re3 {[%emt 0:03:30]} 49. Rxa4 $2 {[%emt 0:00:00][%mdl 8192]} (49. Rf5+ $11 Ke7 50. Ra5) 49... e5+ $19 {[%emt 0:00:10]} ({Worse is} 49... Rxd3 50. Ke4 Re3+ 51. Kxd4 $11) 50. Kg4 {[%emt 0:00:00]} Rxd3 {[%emt 0:00:17]} 51. Ra6+ {[%emt 0:00:00]} Ke7 {[%emt 0:00:05] Hoping for ...Re3.} 52. Kf5 {[%emt 0:00:00]} Re3 {[%emt 0:00:08] White must now prevent ...d3.} 53. Ra7+ {[%emt 0:00:00]} Kd6 {[%emt 0:00:13]} 54. Ra8 {[%emt 0:00:00]} Kc7 {[%emt 0:00:19]} 55. Ra7+ {[%emt 0:00:00]} Kc6 {[%emt 0:00:23] ( -> ...d3)} 56. Ra8 {[%emt 0:00:00]} d3 {[%emt 0:00:18]} 57. Rd8 {[%emt 0:00:00]} e4 {[%emt 0:00:04]} 58. Ke5 {[%emt 0:00:35]} Re2 {[%emt 0:00:12]} 59. Kd4 {[%emt 0:00:13]} d2 {[%emt 0:00:05]} 60. Kc3 {[%emt 0:00:09]} e3 {[%emt 0:00:03]} 61. Kc2 {[%emt 0:00:19]} Re1 {[%emt 0:00:03]} 62. a4 {[%emt 0:04:15]} Rc1+ {[%emt 0:00:04]} 0-1

[Event "French Top 16-A 2024"]
[Site "Chartres"]
[Date "2024.06.04"]
[Round "6.6"]
[White "Flom, Gabriel"]
[Black "Bosc, Seraphina"]
[Result "1/2-1/2"]
[ECO "C11"]
[WhiteElo "2431"]
[BlackElo "2215"]
[Annotator "RC"]
[PlyCount "89"]
[EventDate "2024.06.01"]
[EventType "team-tourn"]
[EventCountry "FRA"]
[SourceTitle "playchess.com"]
[Source "ChessBase"]
[SourceQuality "1"]
[TimeControl "40/5400+30:1800+30"]

1. e4 {[%emt 0:00:18]} e6 {[%emt 0:00:39]} 2. d4 {[%emt 0:00:08]} d5 {[%emt 0:00:10]} 3. Nc3 {[%emt 0:00:09]} Nf6 {[%emt 0:00:15]} 4. e5 {[%emt 0:00:04]} Nfd7 {[%emt 0:00:05]} 5. f4 {[%emt 0:00:16]} c5 {[%emt 0:00:06]} 6. Nf3 {[%emt 0:00:14]} Nc6 {[%emt 0:00:04]} 7. Be3 {[%emt 0:00:42]} cxd4 {[%emt 0:00:12]} 8. Nxd4 {[%emt 0:00:54]} Qb6 {[%emt 0:00:06]} 9. Qd2 {[%emt 0:02:20]} Qxb2 {[%emt 0:00:22]} 10. Rb1 {[%emt 0:00:05]} Qa3 {[%emt 0:00:09]} 11. Bb5 {[%emt 0:00:26]} Nxd4 {[%emt 0:00:20]} 12. Bxd4 {[%emt 0:00:05]} a6 {[%emt 0:00:04]} 13. Rb3 {[%emt 0:02:21]} Qe7 {[%emt 0:00:11]} 14. Ba4 {[%emt 0:00:20]} Qh4+ {[%emt 0:04:40]} 15. Bf2 {[%emt 0:00:39]} Qd8 {[%emt 0:00:51]} 16. Bb6 {[%emt 0:00:06]} Qh4+ {[%emt 0:00:06]} 17. g3 {[%emt 0:00:04]} Qg4 {[%emt 0:00:39]} 18. Ne4 {[%emt 0:00:52]} Be7 {[%emt 0:00:26]} 19. Nc5 {[%emt 0:00:09]} Bxc5 {[%emt 0:00:33]} 20. Bxc5 {[%emt 0:00:10]} b5 {[%emt 0:00:07]} 21. Ba3 {[%emt 0:00:08]} Nxe5 {[%emt 0:00:29]} 22. Qb4 {[%emt 0:02:22]} Ng6 {[%emt 0:00:20]} 23. Rc3 {[%emt 0:03:26]} Bd7 {[%emt 0:12:40]} 24. Rc7 {[%emt 0:00:06]} Rd8 {[%emt 0:01:17]} 25. Bb3 {[%emt 0:12:43]} Qf3 {[%emt 0:02:49]} 26. Rf1 {[%emt 0:00:31]} Qe4+ {[%emt 0:12:29]} 27. Qxe4 {[%emt 0:00:49]} dxe4 {[%emt 0:00:07]} 28. Ra7 {[%emt 0:03:50]} f5 {[%emt 0:29:56]} 29. Kf2 {[%emt 0:12:56]} Bc8 {[%emt 0:26:10]} 30. Rc7 {[%emt 0:03:31]} a5 {[%emt 0:02:36]} 31. c3 {[%emt 0:02:16]} a4 {[%emt 0:01:06]} 32. Bd1 {[%emt 0:00:03]} Bd7 {[%emt 0:02:49]} 33. Be2 {[%emt 0:08:53]} Rc8 {[%emt 0:02:16]} 34. Rxc8+ {[%emt 0:05:22]} Bxc8 {[%emt 0:00:08]} 35. Bxb5+ {[%emt 0:00:01]} Bd7 {[%emt 0:00:56]} 36. Rb1 {[%emt 0:00:04]} Bxb5 {[%emt 0:01:18]} 37. Rxb5 {[%emt 0:00:01]} Kd7 {[%emt 0:00:53]} 38. h4 {[%emt 0:00:39]} Rc8 {[%emt 0:00:28]} 39. Bb4 {[%emt 0:00:18]} Rc7 {[%emt 0:00:34]} 40. Rb6 {[%emt 0:01:48]} Rc6 {[%emt 0:00:30]} 41. Rb8 {[%emt 0:30:57]} Rc8 {[%emt 0:02:53]} 42. Rb5 {[%emt 0:00:00]} Rc7 {[%emt 0:02:21]} 43. Rb8 {[%emt 0:00:00]} Rc8 {[%emt 0:00:12]} 44. Rb7+ {[%emt 0:00:00]} Rc7 {[%emt 0:00:05]} 45. Rb8 {[%emt 0:00:00]} 1/2-1/2

[Event "French Top 16-A 2024"]
[Site "Chartres"]
[Date "2024.06.04"]
[Round "6.6"]
[White "Mathieu, Phileas"]
[Black "Migot, Tangi"]
[Result "1/2-1/2"]
[ECO "B30"]
[WhiteElo "2302"]
[BlackElo "2326"]
[Annotator "RC"]
[PlyCount "134"]
[EventDate "2024.06.01"]
[EventType "team-tourn"]
[EventCountry "FRA"]
[SourceTitle "playchess.com"]
[Source "ChessBase"]
[SourceQuality "1"]
[TimeControl "40/5400+30:1800+30"]

1. e4 {[%emt 0:00:23]} c5 {[%emt 0:00:07]} 2. Nf3 {[%emt 0:00:09]} e6 {[%emt 0:00:24]} 3. d3 {[%emt 0:00:36]} Nc6 {[%emt 0:01:57]} 4. g3 {[%emt 0:00:23]} d6 {[%emt 0:01:10]} 5. Bg2 {[%emt 0:00:08]} Nf6 {[%emt 0:00:05]} 6. O-O {[%emt 0:00:07]} Be7 {[%emt 0:00:05]} 7. c3 {[%emt 0:05:10]} O-O {[%emt 0:00:48]} 8. Re1 {[%emt 0:00:31]} Bd7 {[%emt 0:02:47]} 9. a3 {[%emt 0:05:23]} Rc8 {[%emt 0:07:41]} 10. b4 {[%emt 0:01:26]} cxb4 {[%emt 0:07:13]} 11. axb4 {[%emt 0:06:48]} a6 {[%emt 1:13:43]} 12. Na3 {[%emt 0:02:02]} Ne5 {[%emt 0:00:00]} 13. Bb2 {[%emt 0:04:44]} Nxf3+ {[%emt 0:00:00]} 14. Qxf3 {[%emt 0:00:37]} d5 {[%emt 0:00:00]} 15. Nc2 {[%emt 0:07:42]} dxe4 {[%emt 0:00:00]} 16. dxe4 {[%emt 0:00:01]} e5 {[%emt 0:00:00]} 17. Ne3 {[%emt 0:03:27]} g6 {[%emt 0:00:00]} 18. Rad1 {[%emt 0:14:21]} Qc7 {[%emt 0:00:00]} 19. c4 {[%emt 0:05:14]} Ba4 {[%emt 0:00:00]} 20. Rd5 {[%emt 0:02:02]} Nxd5 {[%emt 0:00:00]} 21. Nxd5 {[%emt 0:01:48]} Qd8 {[%emt 0:00:00]} 22. c5 {[%emt 0:03:28]} f6 {[%emt 0:00:00]} 23. Ra1 {[%emt 0:11:40]} Bd7 {[%emt 0:00:00]} 24. Qb3 {[%emt 0:05:22]} Be6 {[%emt 0:00:00]} 25. f4 {[%emt 0:01:32]} exf4 {[%emt 0:00:00]} 26. Rd1 {[%emt 0:04:36]} Qe8 {[%emt 0:00:00]} 27. Bh3 {[%emt 0:02:00]} Rf7 {[%emt 0:01:30]} 28. Nxf6+ {[%emt 0:10:40]} Bxf6 {[%emt 0:02:27]} 29. Bxe6 {[%emt 0:00:01]} Bxb2 {[%emt 0:02:51]} 30. Rd7 {[%emt 0:00:43]} Bd4+ {[%emt 0:00:04]} 31. Rxd4 {[%emt 0:02:02]} Rcc7 {[%emt 0:00:32]} 32. gxf4 {[%emt 0:00:23]} Kg7 {[%emt 0:02:29]} 33. Bxf7 {[%emt 0:00:09]} Qxf7 {[%emt 0:00:22]} 34. Qxf7+ {[%emt 0:00:27]} Kxf7 {[%emt 0:00:02]} 35. Rd5 {[%emt 0:01:00]} Ke6 {[%emt 0:00:36]} 36. Kf2 {[%emt 0:00:35]} Rc6 {[%emt 0:00:15]} 37. Kf3 {[%emt 0:00:45]} b6 {[%emt 0:00:21]} 38. cxb6 {[%emt 0:00:31]} Rxb6 {[%emt 0:00:05]} 39. Rd4 {[%emt 0:00:07]} Rb5 {[%emt 0:00:25]} 40. Kg4 {[%emt 0:00:46]} a5 {[%emt 0:00:34]} 41. bxa5 {[%emt 0:30:01]} Rxa5 {[%emt 0:30:04]} 42. Rb4 {[%emt 0:00:00]} h5+ {[%emt 0:00:00]} 43. Kh4 {[%emt 0:00:00]} Ra2 {[%emt 0:00:00]} 44. h3 {[%emt 0:00:00]} Rg2 {[%emt 0:00:00]} 45. Rb6+ {[%emt 0:00:00]} Kf7 {[%emt 0:00:00]} 46. Rb7+ {[%emt 0:00:00]} Ke6 {[%emt 0:00:00]} 47. Rb5 {[%emt 0:00:00]} Re2 {[%emt 0:00:00]} 48. Rb6+ {[%emt 0:00:00]} Kf7 {[%emt 0:00:00]} 49. e5 {[%emt 0:00:00]} Rg2 {[%emt 0:00:00]} 50. Rb3 {[%emt 0:00:00]} Rg1 {[%emt 0:00:00]} 51. Re3 {[%emt 0:01:18]} Rg2 {[%emt 0:00:41]} 52. Re1 {[%emt 0:01:01]} Ke6 {[%emt 0:00:42]} 53. Re3 {[%emt 0:00:26]} Kf7 {[%emt 0:00:18]} 54. e6+ {[%emt 0:00:11]} Ke7 {[%emt 0:00:38]} 55. Re1 {[%emt 0:00:55]} Rf2 {[%emt 0:01:20]} 56. Kg5 {[%emt 0:00:30]} Rg2+ {[%emt 0:00:05]} 57. Kh6 {[%emt 0:00:19]} h4 {[%emt 0:02:21]} 58. Re5 {[%emt 0:01:56]} Rg3 {[%emt 0:00:30]} 59. Rg5 {[%emt 0:00:43]} Rxh3 {[%emt 0:02:58]} 60. Rxg6 {[%emt 0:02:24]} Rg3 {[%emt 0:00:30]} 61. f5 {[%emt 0:00:34]} Rxg6+ {[%emt 0:00:44]} 62. Kxg6 {[%emt 0:00:30]} h3 {[%emt 0:00:06]} 63. f6+ {[%emt 0:00:06]} Kxe6 {[%emt 0:00:13]} 64. f7 {[%emt 0:00:03]} h2 {[%emt 0:00:09]} 65. f8=Q {[%emt 0:00:03]} h1=Q {[%emt 0:00:09]} 66. Qe8+ {[%emt 0:00:03]} Kd6 {[%emt 0:00:07]} 67. Qd8+ {[%emt 0:00:02]} Ke6 {[%emt 0:00:07]} 1/2-1/2